Cogmind - Beta 11.1 @@@ ROGUE MODE // 2022.05.12 @ 05:19:29 Player: leiavoia Result: Core destroyed Performance ------------- Evolutions (8) 4000 Regions Visited (26) 5200 Robots Destroyed (517) 2585 Value Destroyed (22922) 22922 Prototype IDs (74) 1480 Alien Tech Used (2) 400 Bonus (13330) 13330 TOTAL SCORE: 49917 Bonus ------- Triggered High Security 500 High Alert Combat Kills 8408 Follower Combat Kills 1248 Network Hubs Disabled 200 Met Zhirov 300 Met Warlord at Base 500 MAIN.C Attacked Warlord 500 Met R17 at Cetus 500 Met Warlord at Research 2000 Friendly Fire -826 Cogmind --------- Core Integrity 0/1450 Matter 26/300 Energy 700/700 System Corruption 29% Temperature Critical (597) Movement Treading (225) Ox1 Location -2/Research Parts ------- > --- POWER (2) -------- Vortex Chain Reactor > --- PROPULSION (6) --- Biometal Heavy Treads Biometal Heavy Treads Biometal Heavy Treads > --- UTILITY (10) ----- Huge Storage Unit Improved Weapon Shielding Improved Heavy Armor Plating Medium Reflective Plating > --- WEAPON (5) ------- Heavy Riot Gun Matter Neutralizer Nova Cannon > --- INVENTORY (25) --- Biometal Heavy Treads Gyrokinetic Inverter Gyrokinetic Inverter Gyrokinetic Inverter Peak State ------------ > --- POWER ------------ Reinforced Antimatter Reactor Quantum Reactor > --- PROPULSION ------- Armored Medium Treads Armored Medium Treads Armored Heavy Treads Advanced Heavy Siege Treads > --- UTILITY ---------- Advanced Heat Sink Huge Storage Unit Long-range Sensor Array Advanced Targeting Computer Advanced Targeting Computer Experimental Core Analyzer Improved Armor Integrity Analyzer Improved Weapon Cycler Centrium Heavy Armor Plating > --- WEAPON ----------- Precision Phase Gun Improved Matter Neutralizer Vortex Driver Enhanced Nova Cannon Railgun > --- INVENTORY -------- Quantum Reactor Quantum Reactor Vortex Chain Reactor Centrium Heavy Treads Advanced Heat Sink Advanced Heat Sink Huge Storage Unit Matter Compressor Heavy Armor Plating Advanced Thermal Shield Advanced Hardlight Generator Advanced Force Field Advanced Hacking Suite Improved System Shield Long-range Tractor Beam Transdimensional Reconstructor Vortex Driver Enhanced Nova Cannon Enhanced Nova Cannon Hardcell Cannon [Rating: 181] Favorites ----------- Power Quantum Reactor Engine Reinforced Ion Engine Power Core Light Fission Core Reactor Quantum Reactor Propulsion Light Treads Treads Light Treads Leg Aluminum Leg Wheel Armored Huge Wheel Utility Huge Storage Unit Device Advanced Heat Sink Storage Huge Storage Unit Processor Advanced Targeting Computer Hackware Hacking Suite Protection Makeshift Ablative Armor Weapon Advanced KE Penetrator Energy Gun Advanced Variable Charge Gun Energy Cannon Advanced Plasma Cannon Ballistic Gun Advanced KE Penetrator Ballistic Cannon Flak Cannon Launcher Grenade Launcher Impact Weapon Heavy Mace Slashing Weapon Phasing Sabre Build | -11 -10 -10 -9 -9 -9 -8 -8 -8 -8 -6 -6 -6 -6 -6 -5 -5 -5 -5 -4 -4 -4 -4 -4 -3 -3 -2 ------- Run | Scr Mat Min Mat Min Exi Min Mat Sto Rec Fac Ext Cet Arc Hub Fac Upp Upp War Pro Fac Upp Upp Zhi Pro Res Res Slots Evolved 16 | . . . 2 . . . 2 . . 4 . . . . 2 . . . . 2 . . . . 2 2 Power 1 | . . . . . . . . . . . . . . . . . . . . 1 . . . . . . Propulsion 4 | . . . . . . . 1 . . 1 . . . . . . . . . . . . . . 2 . Utility 8 | . . . 2 . . . 1 . . 2 . . . . 1 . . . . 1 . . . . . 1 Weapon 3 | . . . . . . . . . . 1 . . . . 1 . . . . . . . . . . 1 Parts Attached 501 | 1 8 10 51 5 . 2 48 27 4 40 27 23 16 2 33 9 10 19 . 4 3 2 6 5 85 61 Power 31 | . 1 2 5 1 . . 3 . . 1 4 1 . . 1 . . . . 1 . . 1 . 7 3 Engine 16 | . 1 2 5 1 . . 3 . . 1 3 . . . . . . . . . . . . . . . Core 2 | . . . . . . . . . . . 1 . . . . . . . . 1 . . . . . . Reactor 13 | . . . . . . . . . . . . 1 . . 1 . . . . . . . 1 . 7 3 Propulsion 72 | . 2 2 6 2 . . 14 8 1 5 4 3 . . 1 . . . . . . . . . 8 16 Treads 61 | . 2 2 6 2 . . 14 8 1 4 2 2 . . 1 . . . . . . . . . 8 9 Leg 8 | . . . . . . . . . . . 1 . . . . . . . . . . . . . . 7 Wheel 3 | . . . . . . . . . . 1 1 1 . . . . . . . . . . . . . . Hover . | . . . . . . . . . . . . . . . . . . . . . . . . . . . Flight . | . . . . . . . . . . . . . . . . . . . . . . . . . . . Utility 230 | 1 3 3 16 2 . 1 16 7 2 18 13 9 8 1 25 7 8 10 . 1 1 1 1 3 47 26 Device 123 | 1 . 1 6 1 . 1 6 3 1 9 9 8 1 1 14 3 3 4 . 1 1 1 1 2 33 12 Storage 7 | . 3 . 1 . . . . 1 . . . . . . . . . . . . . . . . . 2 Processor 10 | . . . . . . . 1 . . 1 . . . . 2 3 . 1 . . . . . . 2 . Hackware 11 | . . . . . . . 1 . . 2 . . 5 . 2 . . . . . . . . . 1 . Protection 79 | . . 2 9 1 . . 8 3 1 6 4 1 2 . 7 1 5 5 . . . . . 1 11 12 Artifact . | . . . . . . . . . . . . . . . . . . . . . . . . . . . Weapon 168 | . 2 3 24 . . 1 15 12 1 16 6 10 8 1 6 2 2 9 . 2 2 1 4 2 23 16 Energy Gun 29 | . . . 6 . . . 5 2 . . . . . . . . . 1 . . . 1 2 1 7 4 Energy Cannon 35 | . . . 4 . . . 3 . . 3 2 3 3 . 2 . . 3 . . . . . 1 5 6 Ballistic Gun 33 | . 1 2 1 . . . . 3 1 2 2 5 2 . 1 1 1 4 . 1 1 . 2 . . 3 Ballistic Cannon 23 | . . . 6 . . . 2 1 . 2 . 1 3 . 1 . . . . . . . . . 5 2 Launcher 33 | . 1 1 7 . . 1 3 3 . 3 2 1 . . 1 1 1 . . 1 1 . . . 6 . Special Weapon . | . . . . . . . . . . . . . . . . . . . . . . . . . . . Impact Weapon 12 | . . . . . . . 1 3 . 6 . . . 1 1 . . . . . . . . . . . Slashing Weapon 3 | . . . . . . . 1 . . . . . . . . . . 1 . . . . . . . 1 Piercing Weapon . | . . . . . . . . . . . . . . . . . . . . . . . . . . . Special Melee Weapon . | . . . . . . . . . . . . . . . . . . . . . . . . . . . Unidentified Prototypes 33 | . . 1 4 . . . 2 1 . 5 . 3 . . 1 . . 4 . . . . 2 . 3 7 Corrupted Parts 2 | . . . . . . . . . . . . . . . . . . . . . . . . . . 2 System Corruption 13 | . . . . . . . . . . . . . . . . . . . . . . . . . . 13 Parts Lost 122 | . . 4 11 . . 1 16 10 . 4 15 8 1 . 1 . . . . . . 1 . 1 14 35 Power 16 | . . 1 2 . . . 1 . . . 3 . . . 1 . . . . . . . . . 4 4 Propulsion 28 | . . 2 1 . . . 6 3 . . 2 2 . . . . . . . . . . . . 2 10 Utility 45 | . . . 3 . . . 7 5 . 2 6 5 . . . . . . . . . . . 1 5 11 Weapon 33 | . . 1 5 . . 1 2 2 . 2 4 1 1 . . . . . . . . 1 . . 3 10 Highest Loss Streak 17 | . . 2 3 . . 1 3 4 . 1 8 6 1 . 1 . . . . . . 1 . 1 5 17 To Critical Strikes . | . . . . . . . . . . . . . . . . . . . . . . . . . . . Average Slot Usage (%) 92 | . 100 99 99 100 100 100 97 97 99 82 81 85 84 86 87 88 87 87 88 89 88 87 71 89 81 73 Engine 5 | . 14 13 11 11 11 11 8 9 9 6 5 1 . . . . . . . . . . . . . . Reactor 2 | . . . . . . . . . . . . 4 6 6 5 5 5 5 5 5 5 5 7 10 8 7 Treads 17 | . 6 27 21 22 22 22 26 26 27 16 7 6 13 13 11 11 11 11 11 10 10 10 10 10 17 13 Device 10 | . 14 3 9 11 11 11 15 11 9 8 17 31 20 6 8 10 4 1 5 10 12 14 15 15 8 12 Storage 8 | . 14 14 11 11 11 11 9 11 18 8 6 6 6 6 5 5 5 5 5 5 5 5 5 5 4 3 Processor 8 | . . . . . . . 2 9 9 6 3 . . . 8 27 29 27 23 21 17 15 15 15 19 13 Hackware 2 | . . . . . . . 4 . . 6 3 . 4 33 15 1 . . . . . . . . 2 . Protection 11 | . . 10 23 22 22 22 10 12 9 9 11 2 13 . 4 . 5 10 11 10 10 10 10 9 3 5 Energy Gun 2 | . . . 3 . . . 6 5 . . . . . . . . . 1 5 5 5 8 1 9 3 3 Energy Cannon 4 | . . . 5 11 11 11 6 . . . 3 6 9 6 7 11 11 8 . . . . . . 2 6 Ballistic Gun 5 | . 27 18 . . . . . 8 8 . 3 9 7 5 2 7 10 10 17 15 14 10 1 10 2 . Ballistic Cannon 3 | . . . 8 11 11 8 2 1 . 5 3 1 . 6 7 . . . . . . . . . 4 2 Launcher 1 | . . 9 2 . . 2 . . . 2 3 . . . . . . . . . . . . . . . Naked Turns 14 | . . . . . . . . . . . . . . . . . . . . . . . . . . 14 Heaviest Build 213 | 13 88 51 106 107 107 107 120 109 109 134 129 133 146 123 140 140 146 153 140 148 150 163 174 174 201 213 Greatest Support 240 | 20 40 40 40 40 40 40 84 68 60 82 56 160 160 160 160 160 160 160 160 160 160 160 160 160 240 225 Greatest Overweight (x) 56 | . 4 1 2 2 2 2 2 2 1 4 4 4 . . . . . . . . . 1 1 1 1 56 Average Overweight (x) 1 | . 1 1 1 2 2 2 1 1 1 3 3 3 . . . . . . . . . . . 1 . . Largest Inventory Capacity 25 | 8 25 20 25 25 25 25 25 25 25 25 25 25 25 25 25 25 25 25 25 25 25 25 25 25 25 25 Average Capacity 24 | 8 19 20 24 25 25 25 25 25 25 25 25 25 25 25 25 25 25 25 25 25 25 25 25 25 25 24 Most Carried 25 | 6 20 20 25 25 25 25 25 25 25 25 25 25 25 25 25 25 25 25 25 25 25 25 25 25 25 25 Average Carried 23 | 6 16 19 23 23 25 24 24 24 24 24 23 24 24 25 24 24 24 24 25 24 25 25 24 24 24 18 Final Capacity 25 | 8 20 20 25 25 25 25 25 25 25 25 25 25 25 25 25 25 25 25 25 25 25 25 25 25 25 25 Final Carried 25 | 6 20 20 22 25 25 25 25 25 25 23 25 25 25 25 25 25 25 25 25 25 25 25 25 25 20 5 Class Distribution -------------------- 35% | Scavenger-Mutant 33% | Mutant 18% | Scavenger-Gunner 3% | Commander-Mutant Dominant Class ---------------- Mutant | -10/Materials Mutant | -10/Mines Scavenger-Mutant | -9/Materials Scavenger-Mutant | -9/Mines Scavenger-Mutant | -9/Exiles Scavenger-Mutant | -8/Mines Mutant | -8/Materials Mutant | -8/Storage Commander-Mutant | -8/Recycling Mutant | -6/Factory Mutant | -6/Extension Scavenger-Tank | -6/Cetus Scavenger-Mutant | -6/Archives Wizard-Skirmisher | -6/Hub_04(d) Hacker-Gunner | -5/Factory Scavenger-Mutant | -5/Upper Caves Scavenger-Mutant | -5/Upper Caves Scavenger-Mutant | -5/Warlord Scavenger-Gunner | -4/Proximity Caves Scavenger-Gunner | -4/Factory Scavenger-Gunner | -4/Upper Caves Scavenger-Gunner | -4/Upper Caves Scavenger-Mutant | -4/Zhirov Scavenger-Gunner | -3/Proximity Caves Scavenger-Gunner | -3/Research Scavenger-Mutant | -2/Research Resources | -11 -10 -10 -9 -9 -9 -8 -8 -8 -8 -6 -6 -6 -6 -6 -5 -5 -5 -5 -4 -4 -4 -4 -4 -3 -3 -2 ----------- Run | Scr Mat Min Mat Min Exi Min Mat Sto Rec Fac Ext Cet Arc Hub Fac Upp Upp War Pro Fac Upp Upp Zhi Pro Res Res Matter Collected 14339 | 282 369 267 1596 162 . 84 1171 632 165 1043 1006 553 289 25 1198 422 365 190 129 . 286 212 . 365 2987 541 Remotely 4919 | . . . 31 . . . 629 . . 630 417 493 . . 674 . 90 111 . . . . . 126 1718 . Salvage Created 21018 | 87 411 57 2083 282 . 172 2412 1492 255 1487 1661 625 613 71 1038 138 222 . 480 . 398 757 . 633 4323 1321 Parts 918 | 5 22 6 138 12 . 18 117 71 2 53 57 31 27 4 43 11 10 . 22 . 13 33 . 13 168 42 Haulers Intercepted 22 | . 1 . 5 . . . 3 3 . 4 . . . . 3 . . . . . . . . . 1 2 Recyclers Shooed 13 | . 1 . 3 1 . . 2 1 1 1 2 . . . . . . . . . . 1 . . . . Parts Field Recycled . | . . . . . . . . . . . . . . . . . . . . . . . . . . . Retrieved Matter . | . . . . . . . . . . . . . . . . . . . . . . . . . . . Parts Self-Destructed 215 | . . . . . . . . . . . . . . . . 7 10 84 31 . 28 41 . 14 . . Prevented 6 | . . . . . . . . . . . . . . . . . . 6 . . . . . . . . Kills | -11 -10 -10 -9 -9 -9 -8 -8 -8 -8 -6 -6 -6 -6 -6 -5 -5 -5 -5 -4 -4 -4 -4 -4 -3 -3 -2 ------- Run | Scr Mat Min Mat Min Exi Min Mat Sto Rec Fac Ext Cet Arc Hub Fac Upp Upp War Pro Fac Upp Upp Zhi Pro Res Res Combat Hostiles Destroyed 432 | . 11 9 57 6 . 10 50 28 . 26 37 14 4 3 17 6 8 . 7 . 9 12 . 10 86 22 Guns 109 | . 11 1 6 . . . 7 11 . . 4 3 3 1 3 1 . . 7 . 6 12 . 10 18 5 Cannons 193 | . . . 37 5 . 8 26 6 . 17 12 5 1 2 12 . . . . . . . . . 45 17 AOE 123 | . . 8 12 . . 2 16 11 . 9 21 5 . . 1 5 7 . . . 3 . . . 23 . Classes Destroyed 24 | 2 5 1 7 . . . 1 . . 2 2 . . . . . . . . . . . . . 2 2 Worker 12 | . 1 . 2 1 . . . . 1 2 1 . . 1 . . . . . . . . . . 3 . Builder 19 | . . . 2 . . . 7 4 . 2 1 . . . 1 . . . . . . . . . 2 . Tunneler 2 | 1 . . 1 . . . . . . . . . . . . . . . . . . . . . . . Hauler 22 | . 1 . 5 . . . 3 3 . 4 . . . . 3 . . . . . . . . . 1 2 Recycler 23 | 1 . . 1 1 . . 2 4 4 3 5 . . . . . . . . . . . . . 2 . Mechanic 6 | . . . 2 . . . 1 . . . . . . . . . . . . . . . . . 3 . Operator 14 | . . . 2 . . . 1 . . . . . 9 . 1 . . . . . . . . . 1 . Watcher 16 | . 2 . 3 . . . 3 . . 1 1 . . . 2 . . . . . . . . . 4 . Swarmer 84 | . 6 1 6 1 . 7 4 . . 10 8 3 . 3 4 5 3 . 1 . 6 3 . 3 10 . Saboteur 1 | . . . . . . . . . . . 1 . . . . . . . . . . . . . . . Grunt 188 | . 5 3 35 3 . 2 33 18 . 11 13 3 . . 7 . 4 . 1 . 2 3 . 4 36 5 Brawler 13 | . . . 1 2 . 1 2 . . . . . . . . . . . . . . 2 . . 4 1 Duelist 12 | . . . 4 . . . . 1 . . 2 . . . 1 . . . 1 . . 1 . . 2 . Protector 10 | . . . 1 . . . 3 3 . . 1 . . . . . . . . . . . . . 2 . Sentry 43 | . . . 10 . . . 6 7 . 2 2 . 4 . 2 1 1 . 1 . . 2 . . 5 . Demolisher 3 | . . . . . . . . . . . . . . . . . . . . . . . . . . 3 Specialist 3 | . . . . . . . . . . . . . . . . . . . . . . . . . 3 . Hunter 28 | . . . . . . . 2 . . 1 6 . . . 1 . . . . . . . . 2 12 4 Programmer 19 | . . . . . . . . . . 1 1 . . . 2 . . . 2 . . 1 . . 9 3 Heavy 3 | . . . . . . . . . . 1 . . . . . . . . . . . . . . 2 . Behemoth 5 | . . . . . . . . . . . 2 . . . . . . . 1 . 1 . . 1 . . Cetus Guard 8 | . . . . . . . . . . . . 8 . . . . . . . . . . . . . . Striker 5 | . . . . . . . . . . . . . . . . . . . . . . . . . . 5 Executioner 2 | . . . . . . . . . . . . . . . . . . . . . . . . . 1 1 Assembled 5 | . . 5 . . . . . . . . . . . . . . . . . . . . . . . . Butcher 1 | . . . . . . . . . . . 1 . . . . . . . . . . . . . . . Guerrilla 1 | . . . . . . . . . . . 1 . . . . . . . . . . . . . . . Best Kill Streak 14 | 1 3 3 8 3 . 3 8 11 2 8 7 6 6 4 4 5 7 . 3 . 3 8 . 4 14 9 Combat Bots Only 11 | . 2 3 8 3 . 3 6 10 . 8 7 6 2 3 4 5 7 . 3 . 3 8 . 4 11 9 Max Kills in Single Turn 4 | 1 2 2 3 1 . 2 3 2 1 3 4 3 1 1 2 4 3 . 2 . 3 2 . 1 4 2 Gunslinging 1 | . 1 . . . . . . . . . . . . . . . . . . . 1 . . . 1 . Exploded 4 | . . 2 2 . . 2 3 2 . 3 4 3 . . 1 4 3 . . . 3 . . . 4 . Melee . | . . . . . . . . . . . . . . . . . . . . . . . . . . . Uniques/NPCs Destroyed . | . . . . . . . . . . . . . . . . . . . . . . . . . . . Combat | -11 -10 -10 -9 -9 -9 -8 -8 -8 -8 -6 -6 -6 -6 -6 -5 -5 -5 -5 -4 -4 -4 -4 -4 -3 -3 -2 -------- Run | Scr Mat Min Mat Min Exi Min Mat Sto Rec Fac Ext Cet Arc Hub Fac Upp Upp War Pro Fac Upp Upp Zhi Pro Res Res Damage Taken 35639 | . 382 555 2155 57 . 278 3024 1983 . 1551 2273 1752 438 117 1263 57 129 22 82 40 267 228 . 489 8274 10223 Core 3920 | . 109 46 143 . . 17 367 161 . 149 143 207 76 33 76 . . . . . 19 . . 19 760 1595 Absorbed by Shields 1527 | . . . . . . . . . . 91 1 42 . . . . . . 51 . 217 138 . 510 373 104 Reduced by Siege Mode 456 | . . . . . . . . . . . . . . . 15 . . . . . 8 . . 17 207 209 Redirected to Shielding 272 | . . 3 29 . . . 103 . . 5 15 61 . . . . . . . . . . . . . 56 Regen/Repaired (Parts) 199 | . . . 125 . . . 74 . . . . . . . . . . . . . . . . . . . Core Remaining (%) 57 | 100 . 38 . . . 60 . . 4 . . . . 28 . . . . 92 . . . . 96 41 . Volleys Fired 1143 | 12 36 18 139 12 . 15 177 75 . 81 76 48 41 3 72 7 13 11 10 . 15 17 . 25 162 78 Largest 5 | 2 2 2 2 2 . 2 2 2 . 2 3 3 3 3 4 4 4 1 4 . 4 4 . 4 4 5 Hottest 462 | 40 40 44 133 112 . 112 136 110 . 90 150 285 135 123 225 266 266 240 185 . 185 244 . 244 280 462 Shots Fired 2238 | 24 72 20 252 24 . 26 313 145 1 104 127 136 100 9 168 12 17 11 35 . 49 60 . 94 308 131 Gun 881 | 24 72 4 42 . . . 65 114 1 . 27 68 36 3 22 3 10 3 35 . 47 60 . 91 113 41 Cannon 1189 | . . . 184 24 . 21 222 16 . 99 65 66 64 6 144 3 3 8 . . . . . 3 172 89 Launcher 168 | . . 16 26 . . 5 26 15 . 5 35 2 . . 2 6 4 . . . 2 . . . 23 1 Special . | . . . . . . . . . . . . . . . . . . . . . . . . . . . Kinetic 1094 | 24 72 4 119 12 . 10 82 66 1 73 53 73 36 6 105 3 10 . 30 . 40 42 . 50 152 31 Thermal 811 | . . . 80 12 . 11 192 64 . 26 39 61 64 3 61 3 3 11 5 . 7 18 . 41 64 46 Explosive 168 | . . 16 26 . . 5 26 15 . 5 35 2 . . 2 6 4 . . . 2 . . . 23 1 Electromagnetic 48 | . . . 27 . . . 13 . . . . . . . . . . . . . . . . . . 8 Entropic 117 | . . . . . . . . . . . . . . . . . . . . . . . . 3 69 45 Robot Hit Streak 27 | 4 19 8 13 10 . 8 14 20 . 12 22 9 27 6 17 3 9 . 11 . 10 17 . 15 19 13 Robot Miss Streak 12 | 3 12 2 9 4 . 5 6 4 . 3 1 3 2 . 6 3 . . 3 . 4 2 . 11 5 6 Penetration Max 1 | . . . . . . . . . . 1 . . . . 1 . . . 1 . . 1 . 1 1 1 Secondary Targets 13 | . 3 . . . . . . 3 . . . . . . . . . . . . 1 1 . 1 4 . Max Gunslinging Chain 1 | . 1 . . . . . . 1 . . . . . . . . . . . . 1 1 . 1 1 . Shots Hit Robots 1472 | 14 43 13 181 15 . 14 203 116 6 68 103 92 79 4 81 3 6 . 21 . 30 42 . 63 194 81 Core Hits 1061 | 3 23 18 177 13 . 19 126 92 1 41 89 45 28 3 36 10 15 . 10 . 20 25 . 25 205 37 Critical Kills 29 | . . . 2 1 . . 1 . 1 . . . 2 . 6 . 1 . 2 . 2 3 . 2 6 . Critical Parts Destroyed 24 | . . . . . . . . . 1 . . 1 3 . 6 . . . 2 . . 1 . 7 3 . Critical Strikes 123 | . . . 2 1 . . 7 6 2 8 4 2 6 . 15 . 1 . 4 . 3 4 . 9 34 15 Burn 9 | . . . . . . . 2 6 . . . . . . . . . . . . . . . . . 1 Meltdown 7 | . . . 2 1 . . 1 . . . . . 1 . 1 . 1 . . . . . . . . . Destroy 47 | . . . . . . . . . . . . 2 5 . 11 . . . 4 . 3 4 . 9 9 . Blast 25 | . . . . . . . 4 . . 8 4 . . . 3 . . . . . . . . . 5 1 Smash 2 | . . . . . . . . . 2 . . . . . . . . . . . . . . . . . Detonate 1 | . . . . . . . . . . . . . . . . . . . . . . . . . 1 . Sunder 32 | . . . . . . . . . . . . . . . . . . . . . . . . . 19 13 Melee Attacks 59 | . . . . . . . 4 10 7 24 1 . . 2 5 2 . 4 . . . . . . . . Impact 52 | . . . . . . . 1 10 7 24 1 . . 2 5 2 . . . . . . . . . . Slashing 7 | . . . . . . . 3 . . . . . . . . . . 4 . . . . . . . . Piercing . | . . . . . . . . . . . . . . . . . . . . . . . . . . . Sneak Attacks 9 | . . . . . . . . 1 6 1 1 . . . . . . . . . . . . . . . Combat Hostiles . | . . . . . . . . . . . . . . . . . . . . . . . . . . . Follow-up Attacks . | . . . . . . . . . . . . . . . . . . . . . . . . . . . Damage Inflicted 66091 | 169 577 670 5108 368 . 607 6430 3536 562 4269 7247 3233 2320 278 2815 454 858 . 815 . 1059 1312 . 1845 16604 4955 Guns 14964 | 169 577 103 666 . . . 890 1718 . . 486 1043 737 26 287 31 . . 815 . 744 1312 . 1601 2880 879 Cannons 30285 | . . . 2881 351 . 287 3570 349 . 2965 2120 1576 1583 127 2351 75 38 . . . . . . 244 7860 3908 Explosions 19568 | . . 556 1528 . . 264 1915 1353 . 1137 4587 614 . . 161 348 820 . . . 315 . . . 5820 150 Melee 921 | . . . . . . . 37 106 562 167 49 . . . . . . . . . . . . . . . Ramming 353 | . . 11 33 17 . 56 18 10 . . 5 . . 125 16 . . . . . . . . . 44 18 Kinetic 22221 | 169 577 103 1869 173 . 136 1179 1039 . 2639 1561 1135 737 57 1468 31 . . 667 . 641 877 . 835 5602 726 Thermal 16063 | . . . 1292 178 . 234 3105 1028 . 490 1333 1484 1583 96 1170 75 38 . 148 . 103 435 . 766 1264 1241 Explosive 18836 | . . 556 1418 . . 181 1915 1353 . 973 4299 614 . . 161 348 820 . . . 315 . . . 5733 150 Electromagnetic 767 | . . . 496 . . . 176 . . . . . . . . . . . . . . . . . . 95 Impact 884 | . . . . . . . . 106 562 167 49 . . . . . . . . . . . . . . . Slashing 37 | . . . . . . . 37 . . . . . . . . . . . . . . . . . . . Piercing . | . . . . . . . . . . . . . . . . . . . . . . . . . . . Entropic 6930 | . . . . . . . . . . . . . . . . . . . . . . . . 244 3961 2725 Highest Corruption 29 | . 1 1 . . . . 3 3 3 . . . . . 4 4 2 2 1 2 2 3 3 3 13 29 Average Corruption 3 | . 1 1 . . . . 3 3 3 . . . . . 3 2 2 2 1 2 2 2 3 3 9 14 Corruption Purged 5 | . . . . . . . . . . . . . . . 3 2 . . . . . . . . . . Corruption Blocked 41 | . . . . . . . . . . . . . . . . . . . . . . . . . . 41 Effects 239 | . 6 9 . . . . 18 25 38 . . . . . 11 15 10 1 2 2 7 19 3 16 33 24 Message Errors 48 | . 1 1 . . . . 4 6 7 . . . . . 2 2 1 . . . 1 10 2 4 3 4 Matter Fused 62 | . 2 1 . . . . 1 4 7 . . . . . 5 4 3 . 1 1 4 4 1 4 14 6 Heat Flow Errors 35 | . 1 1 . . . . 3 3 9 . . . . . 1 2 1 1 1 . 1 1 . 2 3 5 Energy Discharges 32 | . 1 1 . . . . 3 1 10 . . . . . 1 3 2 . . 1 . . . 2 3 4 Parts Rejected 5 | . . . . . . . 1 2 2 . . . . . . . . . . . . . . . . . Data Loss (minor) 29 | . . 3 . . . . 3 5 1 . . . . . 2 1 1 . . . . 2 . 3 5 3 Data Loss (major) 9 | . 1 1 . . . . 1 2 1 . . . . . . . . . . . . 1 . . 1 1 Misfires 9 | . . 1 . . . . . . 1 . . . . . . 2 1 . . . 1 1 . . 2 . Alerts 5 | . . . . . . . 2 . . . . . . . . 1 1 . . . . . . 1 . . Weapon Failures 5 | . . . . . . . . 2 . . . . . . . . . . . . . . . . 2 1 Overload Shots 27 | . . . . . . . . . . . 9 12 . . 3 . . 3 . . . . . . . . Effects 3 | . . . . . . . . . . . 1 2 . . . . . . . . . . . . . . Heat Surge 2 | . . . . . . . . . . . . 2 . . . . . . . . . . . . . . Short Circuit 1 | . . . . . . . . . . . 1 . . . . . . . . . . . . . . . Overflow Damage 2269 | . . 21 23 . . 18 49 66 338 363 342 13 120 61 65 . . . . . 16 . . . 580 194 Projectiles 1217 | . . . 11 . . 18 31 . . 180 144 13 120 13 65 . . . . . . . . . 428 194 Explosions 570 | . . 21 12 . . . 18 . . 182 169 . . . . . . . . . 16 . . . 152 . Melee 482 | . . . . . . . . 66 338 1 29 . . 48 . . . . . . . . . . . . Knockbacks 131 | . . . 45 4 . 5 17 2 2 11 6 . . 2 9 . . . . . . . . . 25 3 Impact 5 | . . . 1 . . 1 . . 2 . . . . 1 . . . . . . . . . . . . Kinetic 114 | . . . 39 4 . 4 16 2 . 10 5 . . . 9 . . . . . . . . . 22 3 Secondary 12 | . . . 5 . . . 1 . . 1 1 . . 1 . . . . . . . . . . 3 . Self-Inflicted Damage 1196 | . . 222 255 . . 29 98 39 . 101 193 . . . . 28 . . . . 55 . . . 176 . Shots 46 | . . 9 11 . . 1 5 2 . 2 8 . . . . 1 . . . . 1 . . . 6 . Rammed 27 | . . 2 3 3 . 7 1 1 . . 1 . . 4 . . . . . . . . . . 3 2 Targets Rammed 32 | . . 2 5 4 . 7 1 1 . . 1 . . 5 1 . . . . . . . . . 3 2 Kicked . | . . . . . . . . . . . . . . . . . . . . . . . . . . . Crushed 5 | . . . 2 1 . . . . . . . . . 1 1 . . . . . . . . . . . Highest Temperature 797 | 6 134 266 483 162 . 177 360 238 275 308 147 395 16 126 489 253 130 320 200 . 200 200 . 200 709 797 Average Temperature 127 | 6 45 77 119 68 . 59 88 55 109 46 41 217 12 65 126 98 57 129 49 . 75 106 . 138 177 234 Received Heat Transfer 7116 | . 126 174 765 12 . 45 1539 972 . 503 495 39 72 . 201 . 36 9 . . 35 37 . 108 1053 895 Effects 94 | . . . 10 . . . 3 . . . . 3 . . 2 . . 1 . . . . . . 33 42 Shutdowns 24 | . . . 2 . . . . . . . . . . . 1 . . . . . . . . . 12 9 Energy Bleed 10 | . . . 1 . . . . . . . . 1 . . 1 . . . . . . . . . 4 3 Interference 25 | . . . 6 . . . 3 . . . . . . . . . . . . . . . . . 6 10 Matter Decay 8 | . . . 1 . . . . . . . . 1 . . . . . . . . . . . . 3 3 Short Circuit 6 | . . . . . . . . . . . . 1 . . . . . 1 . . . . . . 1 3 Damage (minor) 3 | . . . . . . . . . . . . . . . . . . . . . . . . . . 3 Damage (major) 14 | . . . . . . . . . . . . . . . . . . . . . . . . . 6 8 Damage (core) 4 | . . . . . . . . . . . . . . . . . . . . . . . . . 1 3 Siege Activations 9 | . . . . . . . . . . . . . 1 . 1 . . . . . 1 . . 1 4 1 Total Turns 284 | . . . . . . . . . . . . . 125 . 12 . . . . . 9 . . 32 91 15 Longest Duration 125 | . . . . . . . . . . . . . 125 . 12 . . . . . 9 . . 32 39 15 Robots Corrupted . | . . . . . . . . . . . . . . . . . . . . . . . . . . . Combat Hostiles . | . . . . . . . . . . . . . . . . . . . . . . . . . . . Parts Fried 20 | . . . 3 . . . 2 4 8 1 . . . 1 . . . . . . . . . . . 1 Impact Corruptions 15 | . . . . . . . . 1 9 1 1 . . 3 . . . . . . . . . . . . Robots Melted 9 | . . . 2 1 . . 2 . . . . 1 1 . 1 . 1 . . . . . . . . . Combat Hostiles 7 | . . . 2 1 . . 1 . . . . 1 . . 1 . 1 . . . . . . . . . Parts Melted 31 | . . . 5 1 . . 8 1 . . 1 1 4 . 1 . 4 . . . . . . 3 2 . Heat Transferred 22959 | . . . 2265 296 . 359 5092 2188 . 544 1562 1868 2323 150 1710 100 50 . 166 . 148 499 . 962 1382 1295 Parts Sabotaged . | . . . . . . . . . . . . . . . . . . . . . . . . . . . Parts Stolen . | . . . . . . . . . . . . . . . . . . . . . . . . . . . Parts Stripped . | . . . . . . . . . . . . . . . . . . . . . . . . . . . Power Chain Reactions 3 | . . . 3 . . . . . . . . . . . . . . . . . . . . . . . Missiles Intercepted . | . . . . . . . . . . . . . . . . . . . . . . . . . . . Alert | -11 -10 -10 -9 -9 -9 -8 -8 -8 -8 -6 -6 -6 -6 -6 -5 -5 -5 -5 -4 -4 -4 -4 -4 -3 -3 -2 ------- Run | Scr Mat Min Mat Min Exi Min Mat Sto Rec Fac Ext Cet Arc Hub Fac Upp Upp War Pro Fac Upp Upp Zhi Pro Res Res Peak Influence 2327 | 10 186 182 1477 576 . 170 1146 1052 498 1115 1179 849 458 205 348 . . . . 189 . . . . 2327 1628 Initial 1298 | . 6 15 21 576 . . 15 483 351 1022 476 601 259 160 100 . . . . 107 . . . . 47 1298 Average 512 | 6 96 33 507 361 . 41 791 875 351 839 817 706 410 102 205 . . . . 149 . . . . 840 1442 Maximum Alert Level 5 | . . . 4 2 . . 4 3 2 4 4 3 2 1 1 . . . . . . . . . 5 5 Low Security (%) 31 | 100 100 100 28 . . 100 5 . . . . . . 99 38 . . . . 100 . . . . 17 . Level 1 22 | . . . 26 73 . . 3 . 77 11 4 . 26 . 61 . . . . . . . . . 12 . Level 2 15 | . . . 12 25 . . 25 7 22 19 33 51 73 . . . . . . . . . . . 29 . Level 3 19 | . . . 19 . . . 51 92 . 59 56 48 . . . . . . . . . . . . 7 . Level 4 9 | . . . 12 . . . 12 . . 8 5 . . . . . . . . . . . . . 18 88 Level 5 1 | . . . . . . . . . . . . . . . . . . . . . . . . . 10 11 High Security . | . . . . . . . . . . . . . . . . . . . . . . . . . 3 . Max Security . | . . . . . . . . . . . . . . . . . . . . . . . . . . . Sterilizations 2 | . . . 1 . . . 1 . . . . . . . . . . . . . . . . . . . Squads Dispatched 74 | . 3 . 12 . . . 11 8 . 8 10 . . 3 2 . . . . 2 . . . . 14 1 Investigation 20 | . 3 . 2 . . . 3 1 . 3 3 . . 3 . . . . . 2 . . . . . . Extermination 5 | . . . . . . . . . . 1 . . . . 1 . . . . . . . . . 3 . Reinforcement 27 | . . . 5 . . . 4 1 . 4 4 . . . 1 . . . . . . . . . 7 1 Assault 19 | . . . 5 . . . 4 3 . . 3 . . . . . . . . . . . . . 4 . Garrison 3 | . . . . . . . . 3 . . . . . . . . . . . . . . . . . . Intercept . | . . . . . . . . . . . . . . . . . . . . . . . . . . . Searches Triggered 1 | . . . . . . . . . . 1 . . . . . . . . . . . . . . . . Construction Impeded 6 | . . . 1 . . . 2 . . . 1 . . . . . . . . . . . . . 2 . Haulers Reinforced 2 | . . . . . . . . . . 2 . . . . . . . . . . . . . . . . Active Scanning Responses . | . . . . . . . . . . . . . . . . . . . . . . . . . . . Cargo Convoy Interrupts 1 | . . . . . . . . . . . . . . . . . . . . . . . . . 1 . Stealth | -11 -10 -10 -9 -9 -9 -8 -8 -8 -8 -6 -6 -6 -6 -6 -5 -5 -5 -5 -4 -4 -4 -4 -4 -3 -3 -2 --------- Run | Scr Mat Min Mat Min Exi Min Mat Sto Rec Fac Ext Cet Arc Hub Fac Upp Upp War Pro Fac Upp Upp Zhi Pro Res Res Distress Signals 40 | . 2 . 6 . . 1 4 3 . . 2 2 1 . 3 . . . . . . . . . 12 4 Communications Jammed . | . . . . . . . . . . . . . . . . . . . . . . . . . . . Distress Signals . | . . . . . . . . . . . . . . . . . . . . . . . . . . . Times Spotted 717 | . 21 11 87 8 . 9 84 41 58 42 57 18 18 6 26 2 5 1 7 1 12 12 . 16 124 51 Peak Tracking Total 16 | . 5 2 8 3 . 3 8 7 6 6 7 8 2 6 4 1 4 . 5 1 5 5 . 5 12 16 Tactical Retreats 24 | . . 1 2 . . . 5 3 . 1 . . . 1 4 . . . . . . . . . 4 3 Traps | -11 -10 -10 -9 -9 -9 -8 -8 -8 -8 -6 -6 -6 -6 -6 -5 -5 -5 -5 -4 -4 -4 -4 -4 -3 -3 -2 ------- Run | Scr Mat Min Mat Min Exi Min Mat Sto Rec Fac Ext Cet Arc Hub Fac Upp Upp War Pro Fac Upp Upp Zhi Pro Res Res Traps Triggered 9 | . . . . . . . . . . 1 2 . . 1 5 . . . . . . . . . . . Indirectly . | . . . . . . . . . . . . . . . . . . . . . . . . . . . Trap Hack Attempts . | . . . . . . . . . . . . . . . . . . . . . . . . . . . Triggered . | . . . . . . . . . . . . . . . . . . . . . . . . . . . Disarmed . | . . . . . . . . . . . . . . . . . . . . . . . . . . . Reprogrammed . | . . . . . . . . . . . . . . . . . . . . . . . . . . . Reused . | . . . . . . . . . . . . . . . . . . . . . . . . . . . Traps Extracted . | . . . . . . . . . . . . . . . . . . . . . . . . . . . Installed . | . . . . . . . . . . . . . . . . . . . . . . . . . . . Triggered 14 | . . . . . . . . . . . . . . . . . . 13 . . . . . 1 . . Machines | -11 -10 -10 -9 -9 -9 -8 -8 -8 -8 -6 -6 -6 -6 -6 -5 -5 -5 -5 -4 -4 -4 -4 -4 -3 -3 -2 ---------- Run | Scr Mat Min Mat Min Exi Min Mat Sto Rec Fac Ext Cet Arc Hub Fac Upp Upp War Pro Fac Upp Upp Zhi Pro Res Res Machines Disabled 57 | . 1 1 6 2 . 1 7 4 1 10 4 3 3 . 4 . 2 . . . . 1 . . 5 2 Max in Single Turn 4 | . 1 1 2 1 . 1 1 1 . 4 2 1 1 . 1 . 1 . . . . . . . 1 1 Garrison Access 5 | . . . . . . . . . . . . . . 1 1 . . . . . . . . . 2 1 Network Hub 1 | . . . . . . . . . . . . . . 1 . . . . . . . . . . . . Energy Cycler 1 | . . . . . . . . . . . 1 . . . . . . . . . . . . . . . Machines Sabotaged 1 | . . . . . . . . . . . . . . 1 . . . . . . . . . . . . Garrisons Compromised . | . . . . . . . . . . . . . . . . . . . . . . . . . . . Overloaded Fab Kills . | . . . . . . . . . . . . . . . . . . . . . . . . . . . Hacking | -11 -10 -10 -9 -9 -9 -8 -8 -8 -8 -6 -6 -6 -6 -6 -5 -5 -5 -5 -4 -4 -4 -4 -4 -3 -3 -2 --------- Run | Scr Mat Min Mat Min Exi Min Mat Sto Rec Fac Ext Cet Arc Hub Fac Upp Upp War Pro Fac Upp Upp Zhi Pro Res Res Machines Accessed 101 | . 10 1 10 . 1 . 10 3 11 12 10 1 . 3 8 1 . 7 . 4 . . 4 1 4 . Terminals 55 | . 8 1 7 . . . 7 3 5 6 8 1 . 2 4 . . . . 1 . . . 1 1 . Fabricators 6 | . . . . . . . . . . 2 . . . . 2 . . . . 2 . . . . . . Repair Stations 5 | . . . 1 . . . 1 . . 1 1 . . . . . . . . 1 . . . . . . Recycling Units 17 | . 2 . 2 . . . 1 . 6 3 1 . . . 1 . . . . . . . . . 1 . Scanalyzers 1 | . . . . . . . 1 . . . . . . . . . . . . . . . . . . . Garrison Access 4 | . . . . . . . . . . . . . . 1 1 . . . . . . . . . 2 . Total Hacks 335 | . 39 4 30 . 1 . 37 7 30 38 20 1 . 9 58 1 . 12 . 23 . . 17 1 7 . Successful 182 | . 13 . 16 . 1 . 23 . 16 23 14 1 . 5 27 1 . 12 . 9 . . 17 1 3 . Failed 150 | . 26 4 13 . . . 13 7 14 15 6 . . 4 30 . . . . 14 . . . . 4 . Catastrophic 31 | . 2 2 2 . . . 4 3 2 1 3 . . . 5 . . . . 6 . . . . 1 . Database Lockouts 3 | . . . 1 . . . 1 . . . . . . . 1 . . . . . . . . . . . Manual 150 | . 25 4 10 . . . 12 3 18 15 4 . . 5 37 . . . . 15 . . . . 2 . Terminals 212 | . 33 4 19 . . . 23 7 15 26 17 1 . 8 47 . . . . 10 . . . 1 1 . Fabricators 18 | . . . . . . . . . . 5 . . . . 6 . . . . 7 . . . . . . Repair Stations 19 | . . . 5 . . . 6 . . 1 1 . . . . . . . . 6 . . . . . . Recycling Units 43 | . 6 . 6 . . . 2 . 15 6 2 . . . 4 . . . . . . . . . 2 . Scanalyzers 6 | . . . . . . . 6 . . . . . . . . . . . . . . . . . . . Garrison Access 6 | . . . . . . . . . . . . . . 1 1 . . . . . . . . . 4 . Terminal Hacks 117 | . 10 . 9 . 1 . 11 . 7 14 12 1 . 3 16 1 . 12 . 2 . . 17 1 . . Record 14 | . 1 . . . 1 . . . . . . . . . . . . 6 . . . . 5 1 . . Part Schematic 4 | . . . . . . . . . . . . . . . . . . . . . . . 4 . . . Robot Analysis 24 | . 7 . 3 . . . 1 . 3 3 2 . . . 1 . . . . . . . 4 . . . Prototype ID Bank 23 | . 2 . . . . . 4 . 3 . 3 . . . 2 . . 5 . . . . 4 . . . Open Door 6 | . . . . . . . . . . . 3 1 . . . 1 . 1 . . . . . . . . Level Access Points 1 | . . . . . . . . . . . . . . 1 . . . . . . . . . . . . Branch Access Points 5 | . . . 1 . . . 1 . . 1 . . . . 1 . . . . 1 . . . . . . Emergency Access Points 1 | . . . 1 . . . . . . . . . . . . . . . . . . . . . . . Terminal Index 2 | . . . . . . . . . . 1 . . . . 1 . . . . . . . . . . . Garrison Index 2 | . . . . . . . . . . 1 . . . . 1 . . . . . . . . . . . Alert Level 6 | . . . 1 . . . 1 . 1 1 2 . . . . . . . . . . . . . . . Unreport Threat 11 | . . . . . . . . . . 4 2 . . 2 3 . . . . . . . . . . . Locate Traps 4 | . . . 1 . . . 1 . . 1 . . . . 1 . . . . . . . . . . . Maintenance Status 2 | . . . . . . . . . . 1 . . . . 1 . . . . . . . . . . . Assault Status 1 | . . . . . . . 1 . . . . . . . . . . . . . . . . . . . Recall Investigation 1 | . . . . . . . . . . . . . . . . . . . . 1 . . . . . . Hauler Manifests 3 | . . . 1 . . . . . . . . . . . 2 . . . . . . . . . . . Registered Components 2 | . . . 1 . . . . . . . . . . . 1 . . . . . . . . . . . Registered Prototypes 2 | . . . . . . . . . . 1 . . . . 1 . . . . . . . . . . . Zone Layout 3 | . . . . . . . 2 . . . . . . . 1 . . . . . . . . . . . Fabricator Hacks 4 | . . . . . . . . . . 2 . . . . 1 . . . . 1 . . . . . . Network Status 4 | . . . . . . . . . . 2 . . . . 1 . . . . 1 . . . . . . Repair Station Hacks 8 | . . . 4 . . . 3 . . . . . . . . . . . . 1 . . . . . . Scan Component 5 | . . . 2 . . . 2 . . . . . . . . . . . . 1 . . . . . . Repair 3 | . . . 2 . . . 1 . . . . . . . . . . . . . . . . . . . Recycling Unit Hacks 12 | . 2 . 1 . . . 1 . 3 3 1 . . . . . . . . . . . . . 1 . Retrieve Components 12 | . 2 . 1 . . . 1 . 3 3 1 . . . . . . . . . . . . . 1 . Scanalyzer 6 | . . . . . . . 6 . . . . . . . . . . . . . . . . . . . Insert Component 4 | . . . . . . . 4 . . . . . . . . . . . . . . . . . . . Analyze 2 | . . . . . . . 2 . . . . . . . . . . . . . . . . . . . Garrison Access Hacks 4 | . . . . . . . . . . . . . . 1 1 . . . . . . . . . 2 . Seal Access 4 | . . . . . . . . . . . . . . 1 1 . . . . . . . . . 2 . Unauthorized Hacks 30 | . 1 . 2 . . . 2 . 6 4 1 . . 1 8 . . . . 5 . . . . . . Terminals 11 | . . . . . . . 1 . . 1 . . . 1 4 . . . . 4 . . . . . . Track 2 | . . . . . . . . . . . . . . . 1 . . . . 1 . . . . . . Assimilate 1 | . . . . . . . . . . . . . . . . . . . . 1 . . . . . . Botnet 3 | . . . . . . . . . . 1 . . . . 1 . . . . 1 . . . . . . Detonate 1 | . . . . . . . . . . . . . . . 1 . . . . . . . . . . . Disrupt 1 | . . . . . . . 1 . . . . . . . . . . . . . . . . . . . Operators 2 | . . . . . . . . . . . . . . . 1 . . . . 1 . . . . . . Sabotage 1 | . . . . . . . . . . . . . . 1 . . . . . . . . . . . . Fabricators 4 | . . . . . . . . . . 1 . . . . 2 . . . . 1 . . . . . . Fabnet 4 | . . . . . . . . . . 1 . . . . 2 . . . . 1 . . . . . . Repair Stations . | . . . . . . . . . . . . . . . . . . . . . . . . . . . Recycling Units 15 | . 1 . 2 . . . 1 . 6 2 1 . . . 2 . . . . . . . . . . . Reject 1 | . . . . . . . . . . . . . . . 1 . . . . . . . . . . . Mask 4 | . 1 . 2 . . . . . . . . . . . 1 . . . . . . . . . . . Tunnel 10 | . . . . . . . 1 . 6 2 1 . . . . . . . . . . . . . . . Scanalyzers . | . . . . . . . . . . . . . . . . . . . . . . . . . . . Garrison Access . | . . . . . . . . . . . . . . . . . . . . . . . . . . . Data Cores Recovered 2 | . . . . . . . 1 . . . . . . . 1 . . . . . . . . . . . Used 2 | . . . . . . . 1 . . . . . . . 1 . . . . . . . . . . . Hacking Detections 74 | . 10 1 9 . . . 8 4 10 10 7 1 . 2 6 . . . . 4 . . . . 2 . Full Trace Events 20 | . 6 1 3 . . . 4 . . 1 2 . . 1 . . . . . 2 . . . . . . Feedback Events 1 | . 1 . . . . . . . . . . . . . . . . . . . . . . . . . Corruption 1 | . 1 . . . . . . . . . . . . . . . . . . . . . . . . . Feedback Blocked . | . . . . . . . . . . . . . . . . . . . . . . . . . . . Robot Schematics Acquired . | . . . . . . . . . . . . . . . . . . . . . . . . . . . Robots Built . | . . . . . . . . . . . . . . . . . . . . . . . . . . . Authchips . | . . . . . . . . . . . . . . . . . . . . . . . . . . . Time . | . . . . . . . . . . . . . . . . . . . . . . . . . . . Total Robot Build Rating . | . . . . . . . . . . . . . . . . . . . . . . . . . . . Part Schematics Acquired 6 | . . . . . . . 2 . . . . . . . . . . . . . . . 4 . . . Parts Built . | . . . . . . . . . . . . . . . . . . . . . . . . . . . Authchips . | . . . . . . . . . . . . . . . . . . . . . . . . . . . Time . | . . . . . . . . . . . . . . . . . . . . . . . . . . . Total Part Build Rating . | . . . . . . . . . . . . . . . . . . . . . . . . . . . Parts Repaired 3 | . . . 2 . . . 1 . . . . . . . . . . . . . . . . . . . Time 77 | . . . 64 . . . 13 . . . . . . . . . . . . . . . . . . . Parts Recycled . | . . . . . . . . . . . . . . . . . . . . . . . . . . . Recycled Matter . | . . . . . . . . . . . . . . . . . . . . . . . . . . . Retrieved Matter . | . . . . . . . . . . . . . . . . . . . . . . . . . . . Retrieved Components 40 | . 5 . 3 . . . 1 . 7 15 6 . . . . . . . . . . . . . 3 . Parts Scanalyzed 2 | . . . . . . . 2 . . . . . . . . . . . . . . . . . . . Part Schematics Acquired 2 | . . . . . . . 2 . . . . . . . . . . . . . . . . . . . Parts Damaged . | . . . . . . . . . . . . . . . . . . . . . . . . . . . Bothacking | -11 -10 -10 -9 -9 -9 -8 -8 -8 -8 -6 -6 -6 -6 -6 -5 -5 -5 -5 -4 -4 -4 -4 -4 -3 -3 -2 ------------ Run | Scr Mat Min Mat Min Exi Min Mat Sto Rec Fac Ext Cet Arc Hub Fac Upp Upp War Pro Fac Upp Upp Zhi Pro Res Res Used RIF Installer . | . . . . . . . . . . . . . . . . . . . . . . . . . . . Robots Hacked 23 | . . . . . . . . . . . . . . . 1 . 1 2 6 . . 5 . . 5 3 Non-combat . | . . . . . . . . . . . . . . . . . . . . . . . . . . . Combat 23 | . . . . . . . . . . . . . . . 1 . 1 2 6 . . 5 . . 5 3 Robot Hacks Applied . | . . . . . . . . . . . . . . . . . . . . . . . . . . . Relay Couplers Released 2 | . . . . . . . . . . . . . . . . . . . . . . . . . 1 1 Machine Destruction 2 | . . . . . . . . . . . . . . . . . . . . . . . . . 1 1 Fabnet Peak Effective % 7 | . . . . . . . . . . . . . . . 3 3 3 3 7 7 7 7 7 5 5 1 Autooverrided 23 | . . . . . . . . . . . . . . . 1 . 1 2 6 . . 5 . . 5 3 Robots Rewired 17 | . . . . . . . . . 4 . 5 . . . . . . 5 2 . . 1 . . . . Allies Hacked 1 | . . . . . . . . . . . . . . . . . . . . . . . . . . 1 Hacks Repelled . | . . . . . . . . . . . . . . . . . . . . . . . . . . . Allies | -11 -10 -10 -9 -9 -9 -8 -8 -8 -8 -6 -6 -6 -6 -6 -5 -5 -5 -5 -4 -4 -4 -4 -4 -3 -3 -2 -------- Run | Scr Mat Min Mat Min Exi Min Mat Sto Rec Fac Ext Cet Arc Hub Fac Upp Upp War Pro Fac Upp Upp Zhi Pro Res Res Total Allies 57 | . . 3 . 1 . . . 5 4 2 11 . . . 1 . 1 7 8 . . 6 . . 5 3 Largest Group 7 | . . 3 3 1 1 . . 2 4 3 7 . . . 1 . 1 6 7 6 6 3 2 2 1 2 Highest-Rated Group 425 | . . 73 73 31 31 . . 62 62 78 222 . . . 29 . 12 268 425 309 309 170 114 114 82 111 Highest-Rated Ally 116 | . . 31 31 31 31 . . 31 27 41 39 . . . 29 . 12 68 116 68 68 65 65 65 82 69 Total Orders 21 | . . . . . . . . 7 . . . . . . . . 2 . . 2 . . . . 6 4 STAY 1 | . . . . . . . . . . . . . . . . . . . . 1 . . . . . . FOLLOW 1 | . . . . . . . . . . . . . . . . . . . . 1 . . . . . . EXPLORE 17 | . . . . . . . . 6 . . . . . . . . 2 . . . . . . . 6 3 RETURN 2 | . . . . . . . . 1 . . . . . . . . . . . . . . . . . 1 Ally Attacks 366 | . . 4 13 3 . . . 29 77 28 98 . . . 5 . 3 3 32 1 35 17 . 3 7 8 Total Damage 6488 | . . 63 192 43 . . . 206 792 222 1676 . . . 73 . 49 223 873 80 1125 410 . 120 94 247 Kills 66 | . . 1 4 2 . . . 4 21 1 14 . . . . . . . 6 1 6 4 . . 1 1 Allies Corrupted 2 | . . . . . . . . 1 . . . . . . . . . . . . . . . . 1 . Allies Melted 1 | . . . . . . . . . . . . . . . . . . 1 . . . . . . . . Intel | -11 -10 -10 -9 -9 -9 -8 -8 -8 -8 -6 -6 -6 -6 -6 -5 -5 -5 -5 -4 -4 -4 -4 -4 -3 -3 -2 ------- Run | Scr Mat Min Mat Min Exi Min Mat Sto Rec Fac Ext Cet Arc Hub Fac Upp Upp War Pro Fac Upp Upp Zhi Pro Res Res Robot Analysis Total 24 | . 7 . 3 . . . 1 . 3 3 2 . . . 1 . . . . . . . 4 . . . Derelict Logs Recovered 8 | . . . . 1 . . . . . . . . . . . 3 2 . . . 1 1 . . . . Drone Launches 90 | . . . . . . . . 52 . 25 . . . . . . 2 . . . . . . . 8 3 Drone Recoveries 70 | . . . . . . . . 37 . 23 . . . . . . 2 . . . . . . . 6 2 Exploration | -11 -10 -10 -9 -9 -9 -8 -8 -8 -8 -6 -6 -6 -6 -6 -5 -5 -5 -5 -4 -4 -4 -4 -4 -3 -3 -2 ------------- Run | Scr Mat Min Mat Min Exi Min Mat Sto Rec Fac Ext Cet Arc Hub Fac Upp Upp War Pro Fac Upp Upp Zhi Pro Res Res Turns Passed 32597 | 78 1223 1558 4263 1760 410 2112 2306 836 1893 1519 1411 441 365 311 1656 1038 863 1291 673 264 628 1114 266 1112 2127 1079 Spaces Moved 12490 | 34 440 579 1060 532 129 618 703 223 703 639 715 169 96 178 756 586 471 728 384 161 356 493 148 422 808 359 Core 30 | . . . . . . . . . . . . . . . . . . . . . . . . . . 30 Treads 10745 | . 111 579 1060 532 129 618 703 223 703 145 . 41 96 178 756 586 471 728 384 161 356 493 148 422 808 314 Legs 378 | 34 329 . . . . . . . . . . . . . . . . . . . . . . . . 15 Wheels 1337 | . . . . . . . . . . 494 715 128 . . . . . . . . . . . . . . Hover . | . . . . . . . . . . . . . . . . . . . . . . . . . . . Flight . | . . . . . . . . . . . . . . . . . . . . . . . . . . . Fastest Speed 50 | 120 120 240 240 320 320 320 230 230 246 145 130 160 160 160 160 160 160 160 160 160 160 160 160 240 160 50 Average Speed 213 | 120 245 240 309 320 320 320 234 242 249 176 153 160 160 160 160 160 160 160 160 160 160 211 167 240 171 213 Slowest Speed 2850 | 120 400 240 320 320 320 320 320 320 250 320 160 240 160 160 160 160 160 160 160 160 160 240 240 240 247 2850 Overloaded Moves . | . . . . . . . . . . . . . . . . . . . . . . . . . . . Propulsion Burnouts . | . . . . . . . . . . . . . . . . . . . . . . . . . . . Robots Hopped . | . . . . . . . . . . . . . . . . . . . . . . . . . . . Cave-ins Triggered 1 | . . . . . . . . . . . . . . . . . . . . . . . . . . 1 Teleports 1 | . . . . . . . . . . . . . . . . . . . . . . . . . . 1 Exploration Rate (%) 62 | 5 99 94 93 99 48 98 64 78 98 27 86 74 77 18 28 68 85 90 66 6 53 61 60 65 35 23 Regions Visited 26 Branch Regions 18 Pre-discovered Areas 20 | . . . . 1 1 . 1 . 6 2 1 . . . . 1 2 . . . 1 1 3 . . . Known Exits Taken 8 | . . . 1 . . . 1 . . 1 . . . 1 1 1 1 . . 1 . . . . . . Unknown Exits Taken 18 | 1 1 1 . 1 1 1 . 1 1 . 1 1 1 . . . . 1 1 . 1 1 1 1 1 . Scrap Searched 12 | . . 1 . 1 . 2 . . . . . . . . . 2 3 . . . 1 1 . 1 . . Spaces Dug 68 | . . . 3 . . . 3 5 1 18 . . . 2 18 1 2 3 . . . . . . 8 4 Terrain Destroyed 1721 | . . 80 143 . . 57 212 106 1 151 234 13 10 4 61 80 22 3 5 . 47 12 . 34 341 105 Melee 35 | . . . . . . . 3 5 1 18 . . . 2 5 1 . . . . . . . . . . Projectile 368 | . . . 2 . . . 38 1 . 28 11 13 10 2 46 2 7 3 5 . 16 12 . 33 95 44 AOE 1316 | . . 80 141 . . 57 171 100 . 105 223 . . . 10 77 15 . . . 30 . . . 246 61 Terrain Rammed . | . . . . . . . . . . . . . . . . . . . . . . . . . . . Walls Destroyed . | . . . . . . . . . . . . . . . . . . . . . . . . . . . Machines Disabled . | . . . . . . . . . . . . . . . . . . . . . . . . . . . Actions | -11 -10 -10 -9 -9 -9 -8 -8 -8 -8 -6 -6 -6 -6 -6 -5 -5 -5 -5 -4 -4 -4 -4 -4 -3 -3 -2 --------- Run | Scr Mat Min Mat Min Exi Min Mat Sto Rec Fac Ext Cet Arc Hub Fac Upp Upp War Pro Fac Upp Upp Zhi Pro Res Res Total 16327 | 46 515 727 1794 560 128 715 1045 374 840 853 919 270 246 190 1073 672 563 839 419 168 380 526 167 474 1258 566 Wait 1437 | . 6 111 462 . . 70 53 8 64 15 16 5 81 1 187 62 66 20 2 . 7 . 3 22 146 30 Move 12466 | 33 439 578 1059 531 128 617 702 222 702 638 715 168 95 177 755 585 470 727 383 160 355 492 147 421 808 359 Hop . | . . . . . . . . . . . . . . . . . . . . . . . . . . . Pick Up 221 | . 18 2 35 3 . 2 30 13 7 19 17 9 1 . 8 3 . 8 . 2 . . 2 1 15 26 Fast Attach 163 | 1 1 4 13 3 . . 11 6 3 14 7 9 7 . 7 2 3 12 . 1 1 2 7 . 23 26 Attach 138 | . 1 3 11 . . 1 16 11 . 8 13 6 4 . 4 2 1 1 . 2 . . . 1 25 28 Detach 35 | . . 2 2 . . . 1 2 . 5 . 1 5 . 1 . 1 . . 1 . . . . 12 2 Swap 203 | . 6 3 27 2 . 1 21 10 1 19 7 8 5 2 22 5 6 6 . 1 2 . . 4 37 8 Drop 251 | . 8 4 41 5 . 2 29 9 11 30 4 16 7 . 11 4 3 22 . 1 . 1 8 . 28 7 Fire 1143 | 12 36 18 139 12 . 15 177 75 . 81 76 48 41 3 72 7 13 11 10 . 15 17 . 25 162 78 Melee 59 | . . . . . . . 4 10 7 24 1 . . 2 5 2 . 4 . . . . . . . . Ram . | . . . . . . . . . . . . . . . . . . . . . . . . . . . Kick . | . . . . . . . . . . . . . . . . . . . . . . . . . . . Crush 30 | . . 2 5 4 . 7 1 1 . . . . . 5 1 . . . . . . . . . 2 2 Escape Stasis 8 | . . . . . . . . . . . 8 . . . . . . . . . . . . . . . Rewire 166 | . . . . . . . . . 45 . 55 . . . . . . 28 24 . . 14 . . . . Trap . | . . . . . . . . . . . . . . . . . . . . . . . . . . . Miscellaneous 7 | . . . . . . . . 7 . . . . . . . . . . . . . . . . . . Route ------- -11/Scrapyard -10/Materials (discovered 4 exits: *Mat x3 / *Min) -10/Mines (discovered 2 exits: *Mat x2) -9/Materials (discovered 4 exits: *Mat x2 / *Min x2) -9/Mines (discovered 3 exits: *Mat x2 / *Exi) -9/Exiles -8/Mines (discovered 2 exits: *Mat x2) -8/Materials (discovered 4 exits: [*Fac x2] / *Sto x2) -8/Storage -8/Recycling -6/Factory (discovered 4 exits: *Low x2 / *Ext x2) -6/Extension (discovered 3 exits: *Fac x2 / *Cet) -6/Cetus (discovered 2 exits: *Fac / *Arc) -6/Archives (discovered 2 exits: *Hub x2) -6/Hub_04(d) (discovered 4 exits: *Fac x4) -5/Factory (discovered 2 exits: *Upp x2) -5/Upper Caves -5/Upper Caves -5/Warlord -4/Proximity Caves -4/Factory (discovered 3 exits: *Upp x2 / Arm) -4/Upper Caves -4/Upper Caves (discovered 2 exits: *Res / *Zhi) -4/Zhirov -3/Proximity Caves -3/Research -2/Research History --------- Turn | Location | Event 31 | -11/Scrapyard | Discovered new exit (range 3) 79 | -11/Scrapyard | Entered Materials 310 | -10/Materials | Build established: Mutant 377 | -10/Materials | Discovered new exit (range 13) 661 | -10/Materials | Discovered new exit (range 15) 904 | -10/Materials | Discovered new exit (range 10) 1094 | -10/Materials | Discovered new exit (range 6) 1302 | -10/Materials | Entered Mines 1318 | -10/Mines | Assembled infested the area 1323 | -10/Mines | Assisted by a Guerilla fighting off Assembled 1674 | -10/Mines | Core integrity fell below 50% 2313 | -10/Mines | Found Prototype Device 2313 | -10/Mines | Identified Splice Drone Bay 2588 | -10/Mines | A weapon hastily lodged in a ceiling crevice suddenly fell to the ground 2635 | -10/Mines | Discovered new exit (range 5) 2848 | -10/Mines | Discovered new exit (range 6) 2851 | -10/Mines | Received a Mining Laser from a helpful Derelict 2860 | -10/Mines | Entered Materials 2860 | -9/Materials | Accompanied by 3 allies 2860 | -9/Materials | Evolved 2 slots: Utility x2 2865 | -9/Materials | Led the pair of lost Derelicts to an unsafe place 3369 | -9/Materials | Identified exit to Mines 3594 | -9/Materials | Discovered new exit (range 10) 3706 | -9/Materials | Repaired Flak Cannon 3733 | -9/Materials | Repaired Lgt. Treads 4777 | -9/Materials | Discovered new exit (range 16) 5001 | -9/Materials | Build established: Scavenger-Mutant 5076 | -9/Materials | Central database locked down 5660 | -9/Materials | First assault squad dispatched 6947 | -9/Materials | Sterilization system engaged 6947 | -9/Materials | Non-combat units ordered to evacuate 6949 | -9/Materials | Lost 3 parts (2u1w) 7047 | -9/Materials | Combat units ordered to evacuate 7069 | -9/Materials | Destroyed 8 combat bots 7123 | -9/Materials | Entered Mines 7126 | -9/Mines | Met a Derelict bent on vengeance 7168 | -9/Mines | Discovered new exit (range 14) 7229 | -9/Mines | Deemed a non-threat by the Exiles lab entrance 7364 | -9/Mines | Build established: Mutant 7565 | -9/Mines | Discovered new exit (range 15) 8138 | -9/Mines | Received a Rocket Launcher from a helpful Derelict 8212 | -9/Mines | Build established: Scavenger-Mutant 8371 | -9/Mines | Escorted by a lone wolf Derelict 8871 | -9/Mines | Discovered new exit (range 5) 8883 | -9/Mines | Entered Exiles 8883 | -9/Exiles | Accompanied by 1 ally 8957 | -9/Exiles | Met 8R-AWN 9015 | -9/Exiles | Met EX-HEX 9136 | -9/Exiles | Met EX-DEC 9159 | -9/Exiles | Learned location of Zion (-6) 9267 | -9/Exiles | Discovered new exit (range 10) 9293 | -9/Exiles | Entered Mines 10106 | -8/Mines | Discovered new exit (range 7) 10970 | -8/Mines | Discovered new exit (range 11) 11405 | -8/Mines | Entered Materials 11405 | -8/Materials | Evolved 2 slots: Propulsion x1, Utility x1 11741 | -8/Materials | Lost 3 parts (2n1u) 11802 | -8/Materials | Central database locked down 11805 | -8/Materials | First assault squad dispatched 11890 | -8/Materials | Discovered new exit (range 16) 12100 | -8/Materials | Identified exit to Storage 12482 | -8/Materials | Build established: Mutant 12499 | -8/Materials | Core integrity fell below 50% 12737 | -8/Materials | Lost 3 parts (2n1u) 12963 | -8/Materials | Discovered new exit (range 9) 13345 | -8/Materials | Repaired Lgt. Armor Plating 13569 | -8/Materials | Sterilization system engaged 13569 | -8/Materials | Non-combat units ordered to evacuate 13669 | -8/Materials | Combat units ordered to evacuate 13711 | -8/Materials | Entered Storage 13725 | -8/Storage | Met a pair of Derelict thieves 13747 | -8/Storage | Garrison activated, responded to threat 13804 | -8/Storage | Destroyed 10 combat bots 13974 | -8/Storage | Core integrity fell below 20% 14111 | -8/Storage | First assault squad dispatched 14227 | -8/Storage | Lost 4 parts (3u1w) 14538 | -8/Storage | Used back door to open Recycling access 14538 | -8/Storage | Discovered new exit (range 5) 14547 | -8/Storage | Entered Recycling 14575 | -8/Recycling | Spotter reported a threat 14580 | -8/Recycling | Spotter reported a threat 14588 | -8/Recycling | Spotter reported a threat 14590 | -8/Recycling | Spotter reported a threat 14606 | -8/Recycling | Spotter reported a threat 14606 | -8/Recycling | Spotter reported a threat 14607 | -8/Recycling | Spotter reported a threat 14614 | -8/Recycling | Spotter reported a threat 14628 | -8/Recycling | Spotter reported a threat 14652 | -8/Recycling | Spotter reported a threat 14658 | -8/Recycling | Spotter reported a threat 14667 | -8/Recycling | Spotter reported a threat 14705 | -8/Recycling | Spotter reported a threat 14724 | -8/Recycling | Spotter reported a threat 14742 | -8/Recycling | Spotter reported a threat 14768 | -8/Recycling | Spotter reported a threat 14805 | -8/Recycling | Spotter reported a threat 14809 | -8/Recycling | Spotter reported a threat 14832 | -8/Recycling | Spotter reported a threat 14836 | -8/Recycling | Spotter reported a threat 14882 | -8/Recycling | Spotter reported a threat 14889 | -8/Recycling | Spotter reported a threat 14889 | -8/Recycling | Spotter reported a threat 14890 | -8/Recycling | Spotter reported a threat 14900 | -8/Recycling | Spotter reported a threat 14913 | -8/Recycling | Spotter reported a threat 14928 | -8/Recycling | Spotter reported a threat 14935 | -8/Recycling | Spotter reported a threat 14942 | -8/Recycling | Spotter reported a threat 14943 | -8/Recycling | Spotter reported a threat 14953 | -8/Recycling | Spotter reported a threat 14960 | -8/Recycling | Spotter reported a threat 14981 | -8/Recycling | Spotter reported a threat 15006 | -8/Recycling | Spotter reported a threat 15013 | -8/Recycling | Spotter reported a threat 15026 | -8/Recycling | Spotter reported a threat 15043 | -8/Recycling | Spotter reported a threat 15059 | -8/Recycling | Spotter reported a threat 15071 | -8/Recycling | Spotter reported a threat 15079 | -8/Recycling | Spotter reported a threat 15104 | -8/Recycling | Spotter reported a threat 15124 | -8/Recycling | Spotter reported a threat 15132 | -8/Recycling | Spotter reported a threat 15141 | -8/Recycling | Spotter reported a threat 15149 | -8/Recycling | Spotter reported a threat 15157 | -8/Recycling | Spotter reported a threat 15173 | -8/Recycling | Spotter reported a threat 15185 | -8/Recycling | Spotter reported a threat 15194 | -8/Recycling | Spotter reported a threat 15205 | -8/Recycling | Spotter reported a threat 15238 | -8/Recycling | Spotter reported a threat 15247 | -8/Recycling | Spotter reported a threat 15250 | -8/Recycling | Spotter reported a threat 15257 | -8/Recycling | Spotter reported a threat 15303 | -8/Recycling | Build established: Commander-Mutant 15305 | -8/Recycling | Spotter reported a threat 15306 | -8/Recycling | Spotter reported a threat 15356 | -8/Recycling | Spotter reported a threat 15364 | -8/Recycling | Spotter reported a threat 15393 | -8/Recycling | Discovered new exit (range 6) 15403 | -8/Recycling | Spotter reported a threat 15409 | -8/Recycling | Spotter reported a threat 15432 | -8/Recycling | Spotter reported a threat 15460 | -8/Recycling | Spotter reported a threat 15463 | -8/Recycling | Spotter reported a threat 15485 | -8/Recycling | Spotter reported a threat 15524 | -8/Recycling | Spotter reported a threat 15532 | -8/Recycling | Spotter reported a threat 15538 | -8/Recycling | Spotter reported a threat 15584 | -8/Recycling | Spotter reported a threat 15585 | -8/Recycling | Spotter reported a threat 15595 | -8/Recycling | Spotter reported a threat 15613 | -8/Recycling | Spotter reported a threat 15637 | -8/Recycling | Spotter reported a threat 15638 | -8/Recycling | Spotter reported a threat 15666 | -8/Recycling | Spotter reported a threat 15683 | -8/Recycling | Spotter reported a threat 15683 | -8/Recycling | Spotter reported a threat 15690 | -8/Recycling | Spotter reported a threat 15743 | -8/Recycling | Spotter reported a threat 15757 | -8/Recycling | Spotter reported a threat 15760 | -8/Recycling | Spotter reported a threat 15796 | -8/Recycling | Spotter reported a threat 15810 | -8/Recycling | Spotter reported a threat 15813 | -8/Recycling | Spotter reported a threat 15865 | -8/Recycling | Spotter reported a threat 15891 | -8/Recycling | Spotter reported a threat 15895 | -8/Recycling | Spotter reported a threat 15917 | -8/Recycling | Spotter reported a threat 15944 | -8/Recycling | Spotter reported a threat 15948 | -8/Recycling | Spotter reported a threat 15969 | -8/Recycling | Spotter reported a threat 15971 | -8/Recycling | Spotter reported a threat 15972 | -8/Recycling | Spotter reported a threat 16018 | -8/Recycling | Spotter reported a threat 16022 | -8/Recycling | Spotter reported a threat 16024 | -8/Recycling | Spotter reported a threat 16077 | -8/Recycling | Spotter reported a threat 16103 | -8/Recycling | Spotter reported a threat 16125 | -8/Recycling | Spotter reported a threat 16174 | -8/Recycling | Spotter reported a threat 16196 | -8/Recycling | Spotter reported a threat 16227 | -8/Recycling | Spotter reported a threat 16270 | -8/Recycling | Spotter reported a threat 16323 | -8/Recycling | Spotter reported a threat 16326 | -8/Recycling | Spotter reported a threat 16356 | -8/Recycling | Spotter reported a threat 16376 | -8/Recycling | Spotter reported a threat 16376 | -8/Recycling | Spotter reported a threat 16409 | -8/Recycling | Spotter reported a threat 16424 | -8/Recycling | Build established: Mutant 16429 | -8/Recycling | Spotter reported a threat 16440 | -8/Recycling | Entered Factory 16440 | -6/Factory | Accompanied by 3 allies 16440 | -6/Factory | Evolved 4 slots: Propulsion x1, Utility x2, Weapon x1 16790 | -6/Factory | Search patrols dispatched 16881 | -6/Factory | Identified exit to Lower Caves 16881 | -6/Factory | Identified exit to Extension 16975 | -6/Factory | Build established: Hacker-Mutant 17214 | -6/Factory | Destroyed 8 combat bots 17222 | -6/Factory | Found Hvy. Insulated Plating 17226 | -6/Factory | Found Hvy. Insulated Plating 17438 | -6/Factory | Build established: Mutant 17959 | -6/Factory | Entered Extension 18309 | -6/Extension | First assault squad dispatched 18309 | -6/Extension | Disrupted transfer network 18369 | -6/Extension | Rescued a captive Derelict 18481 | -6/Extension | Rescued a captive Derelict 18482 | -6/Extension | Rescued a captive Derelict 18505 | -6/Extension | Energy Cycler disabled 18506 | -6/Extension | Rescued a captive Derelict 18506 | -6/Extension | Rescued a captive Derelict 18506 | -6/Extension | Rescued a captive Derelict 18507 | -6/Extension | Rescued a captive Derelict 18509 | -6/Extension | Rescued a captive Derelict 18510 | -6/Extension | Rescued a captive Derelict 18512 | -6/Extension | Rescued a captive Derelict 18512 | -6/Extension | Rescued a captive Derelict 18516 | -6/Extension | Rescued a captive Derelict 18521 | -6/Extension | Rescued a captive Derelict 18671 | -6/Extension | Disrupted transfer network 18816 | -6/Extension | Spotted B-75 Beast 18830 | -6/Extension | Destroyed B-75 Beast 18849 | -6/Extension | Discovered new exit (range 16) 18849 | -6/Extension | Spotted B-75 Beast 18862 | -6/Extension | Destroyed B-75 Beast 18912 | -6/Extension | Lost 8 parts (2p3u3w) 18917 | -6/Extension | Destroyed 7 combat bots 19330 | -6/Extension | Discovered new exit (range 10) 19331 | -6/Extension | Discovered new exit (range 6) 19370 | -6/Extension | Entered Cetus 19391 | -6/Cetus | Spotted Cetus Guard 19391 | -6/Cetus | Spotted Cetus Guard 19405 | -6/Cetus | Destroyed Cetus Guard 19406 | -6/Cetus | Spotted Cetus Guard 19423 | -6/Cetus | Destroyed Cetus Guard 19430 | -6/Cetus | Spotted Cetus Guard 19433 | -6/Cetus | Destroyed Cetus Guard 19443 | -6/Cetus | Build established: Scavenger-Tank 19458 | -6/Cetus | Destroyed Cetus Guard 19480 | -6/Cetus | Lost 6 parts (1n4u1w) 19555 | -6/Cetus | Core integrity fell below 50% 19555 | -6/Cetus | Cetus Manufacturing Module disabled 19622 | -6/Cetus | Discovered new exit (range 16) 19655 | -6/Cetus | Spotted Cetus Guard 19655 | -6/Cetus | Spotted Cetus Guard 19668 | -6/Cetus | Destroyed Cetus Guard 19668 | -6/Cetus | Spotted Cetus Guard 19685 | -6/Cetus | Destroyed Cetus Guard 19695 | -6/Cetus | Destroyed Cetus Guard 19696 | -6/Cetus | Spotted Cetus Guard 19700 | -6/Cetus | Destroyed Cetus Guard 19712 | -6/Cetus | Discovered new exit (range 16) 19720 | -6/Cetus | Met Revision 17 19811 | -6/Cetus | Entered Archives 19919 | -6/Archives | Discovered new exit (range 16) 19938 | -6/Archives | Discovered new exit (range 15) 19948 | -6/Archives | Unable to access archive contents 20176 | -6/Archives | Entered Hub_04(d) 20199 | -6/Hub_04(d) | Identified exit to Factory 20456 | -6/Hub_04(d) | Network Hub disabled 20463 | -6/Hub_04(d) | Build established: Wizard-Skirmisher 20487 | -6/Hub_04(d) | Entered Factory 20487 | -5/Factory | Evolved 2 slots: Utility x1, Weapon x1 21430 | -5/Factory | Identified exit to Upper Caves 21845 | -5/Factory | Central database locked down 22143 | -5/Factory | Entered Upper Caves 22144 | -5/Upper Caves | Encountered a Warlord checkpoint 22223 | -5/Upper Caves | Identified exit to Upper Caves 22575 | -5/Upper Caves | Build established: Scavenger-Mutant 23015 | -5/Upper Caves | Attracted the attention of an 0b10 checkpoint 23035 | -5/Upper Caves | Learned Factory terminal intel 23181 | -5/Upper Caves | Entered another Upper Caves area 23281 | -5/Upper Caves | Attracted the attention of an 0b10 checkpoint 23402 | -5/Upper Caves | Learned location of Armory (-4) 23546 | -5/Upper Caves | Attracted the attention of an 0b10 base 23569 | -5/Upper Caves | Destroyed 7 combat bots 23981 | -5/Upper Caves | Discovered new exit (range 13) 24042 | -5/Upper Caves | Identified exit to Warlord 24044 | -5/Upper Caves | Entered Warlord 24099 | -5/Warlord | System corruption cleaned by Quarantine Array 24797 | -5/Warlord | Warlord's base attacked by MAIN.C 24819 | -5/Warlord | Found Prototype Device 24819 | -5/Warlord | Identified Minesniffer Drone Bay 24966 | -5/Warlord | Met Warlord 25006 | -5/Warlord | Found Prototype Processor 25006 | -5/Warlord | Identified Exp. Core Analyzer 25024 | -5/Warlord | Found Prototype Reactor 25129 | -5/Warlord | Found Prototype Energy Gun 25132 | -5/Warlord | Found Prototype Energy Gun 25137 | -5/Warlord | Found Prototype Energy Cannon 25140 | -5/Warlord | Found Prototype Energy Cannon 25143 | -5/Warlord | Found Prototype Energy Cannon 25143 | -5/Warlord | Identified Vortex Driver (x3) 25147 | -5/Warlord | Warlord forces counterattacked 25147 | -5/Warlord | Found Vortex Driver 25227 | -5/Warlord | Found Prototype Ballistic Cannon 25294 | -5/Warlord | Discovered new exit (range 15) 25335 | -5/Warlord | Entered Proximity Caves 25335 | -4/Proximity Caves | Accompanied by 4 allies 25390 | -4/Proximity Caves | Attracted the attention of an 0b10 outpost 25628 | -4/Proximity Caves | Build established: Scavenger-Gunner 25712 | -4/Proximity Caves | Spotted B-86 Titan 25730 | -4/Proximity Caves | Destroyed B-86 Titan 25907 | -4/Proximity Caves | Attracted the attention of an 0b10 checkpoint 25934 | -4/Proximity Caves | Discovered new exit (range 10) 26008 | -4/Proximity Caves | Entered Factory 26008 | -4/Factory | Accompanied by 6 allies 26008 | -4/Factory | Evolved 2 slots: Power x1, Utility x1 26009 | -4/Factory | Loaded intel: 26 terminal locations 26130 | -4/Factory | Identified exit to Upper Caves 26130 | -4/Factory | Identified exit to Armory 26272 | -4/Factory | Entered Upper Caves 26272 | -4/Upper Caves | Accompanied by 6 allies 26507 | -4/Upper Caves | Spotted B-86 Titan 26519 | -4/Upper Caves | Destroyed B-86 Titan 26593 | -4/Upper Caves | Attracted the attention of an 0b10 checkpoint 26702 | -4/Upper Caves | Learned location of Quarantine (-2) 26892 | -4/Upper Caves | Discovered new exit (range 6) 26900 | -4/Upper Caves | Entered another Upper Caves area 26900 | -4/Upper Caves | Accompanied by 2 allies 26986 | -4/Upper Caves | Destroyed 8 combat bots 27013 | -4/Upper Caves | Discovered new exit (range 6) 27573 | -4/Upper Caves | Discovered new exit (range 5) 28014 | -4/Upper Caves | Entered Zhirov 28014 | -4/Zhirov | Accompanied by 2 allies 28014 | -4/Zhirov | Discovered new exit (range 3) 28052 | -4/Zhirov | Met Zhirov 28098 | -4/Zhirov | Zhirov requested help retrieving the SGEMP Prototype 28123 | -4/Zhirov | Found Alien Artifact 28123 | -4/Zhirov | Identified Integrated Reactor 28123 | -4/Zhirov | Installed Integrated Reactor, increased core energy generation (+10) 28145 | -4/Zhirov | Found Alien Artifact 28280 | -4/Zhirov | Entered Proximity Caves 28280 | -3/Proximity Caves | Accompanied by 2 allies 28553 | -3/Proximity Caves | Spotted B-86 Titan 28562 | -3/Proximity Caves | Destroyed B-86 Titan 29340 | -3/Proximity Caves | Discovered new exit (range 11) 29392 | -3/Proximity Caves | Entered Research 29392 | -3/Research | Evolved 2 slots: Propulsion x2 29867 | -3/Research | Identified Vortex Rifle (x2) 29935 | -3/Research | Identified Hvy. Autocannon 30268 | -3/Research | Found Adv. Powered Armor 30344 | -3/Research | Found Adv. Powered Armor 30449 | -3/Research | Local machine network offline 30684 | -3/Research | Cargo convoy interrupted 30688 | -3/Research | Spotted Executioner 30695 | -3/Research | Destroyed Executioner 30732 | -3/Research | Destroyed 9 combat bots 30799 | -3/Research | Destroyed 7 combat bots 30892 | -3/Research | First assault squad dispatched 30931 | -3/Research | Found Exp. Signal Interpreter 31297 | -3/Research | System corruption reached 10% 31331 | -3/Research | Core integrity fell below 50% 31367 | -3/Research | Lost 5 parts (1p1n1u2w) 31376 | -3/Research | Destroyed 11 combat bots 31395 | -3/Research | Discovered new exit (range 29) 31435 | -3/Research | High security lockdown imminent 31460 | -3/Research | Destroyed 10 combat bots 31515 | -3/Research | High security lockdown engaged 31519 | -3/Research | Entered another Research area 31519 | -2/Research | Warlord forces began assault on 0b10 31519 | -2/Research | Evolved 2 slots: Utility x1, Weapon x1 31613 | -2/Research | Build established: Scavenger-Mutant 31629 | -2/Research | Research machine network offline 31780 | -2/Research | Met up with Warlord 31868 | -2/Research | Found Prototype Protection 31868 | -2/Research | Identified Centrium Heavy Armor Plating 32131 | -2/Research | Spotted Striker 32135 | -2/Research | Destroyed Striker 32141 | -2/Research | Spotted Striker 32166 | -2/Research | Borebot progress halted 32172 | -2/Research | Spotted Executioner 32185 | -2/Research | Destroyed Executioner 32198 | -2/Research | Spotted Executioner 32202 | -2/Research | Spotted Striker 32211 | -2/Research | Crushed by falling debris 32211 | -2/Research | System corruption reached 10% 32211 | -2/Research | Spotted Executioner 32248 | -2/Research | Lost 17 parts (2p5n5u5w) 32251 | -2/Research | Destroyed 9 combat bots 32267 | -2/Research | Spotted Striker 32274 | -2/Research | Spotted Striker 32408 | -2/Research | Borebot progress halted 32415 | -2/Research | Spotted Striker 32418 | -2/Research | Destroyed Striker 32450 | -2/Research | Spotted Striker 32455 | -2/Research | Spotted Striker 32462 | -2/Research | Spotted Executioner 32484 | -2/Research | Destroyed Striker 32485 | -2/Research | Core integrity fell below 50% 32488 | -2/Research | Spotted Striker 32505 | -2/Research | Destroyed Striker 32508 | -2/Research | Released all parts (13) 32510 | -2/Research | Core integrity fell below 20% 32536 | -2/Research | Lost 13 parts (2p5n4u2w) 32546 | -2/Research | Identified Vortex Chain Reactor 32555 | -2/Research | Spotted Striker 32557 | -2/Research | Spotted Striker 32559 | -2/Research | Identified Transdimensional Reconstructor 32559 | -2/Research | Warped through subspace 32569 | -2/Research | Destroyed Striker 32599 | -2/Research | Core destroyed Last Messages --------------- 32583_ Overheating: Short circuit. 32584_ System corrupted: Matter fused (-10). 32585_ Overheating: Med. Reflective Plating damaged (-32). 32585_ Overheating: Biometal Heavy Treads damaged (-199). 32587_ Overheating: System interference. 32587_ Hvy. Riot Gun temporarily disabled. 32588_ Overheating: Core damaged (-159). 32589_ Biometal Heavy Treads broken. 32589_ Overheating: Short circuit. 32590_ Overheating: Biometal Heavy Treads damaged (-286). 32590_ Overheating: Broken Nova Cannon damaged (-62). 32590_ Overheating: Vortex Chain Reactor damaged (-98). 32590_ Critical hit (Impale). 32591_ Power failure, Vortex Chain Reactor shutdown. 32594_ Slammed into Striker. 32595_ Overheating: Matter decay (-5). 32597_ Slammed into Striker. 32598_ Overheating: Broken Biometal Heavy Treads damaged (-120). 32599_ Power failure, Vortex Chain Reactor shutdown. 32599_ Overheating: Core damaged (-232). Map ----- +----------------------------------------------------+ | #" ????????????????????????? | | # # # # #?????????????????????????? | | # # #?????????????????????????? | | # # #?????????????????????????? | | # ## ### !!# ###???????????????????????? | | = """G"" %# #???????????????????????? | | %= " " ! / ###???????????????????????? | | ! * % #???????????????????????? | | %[ / #???????????????????????? | | [ % ! ###???????????????????????? | | %% [ % #?????????????????????????? | | * ** !! # #?????????????????????????? | | % =%]==!]]% % # # ###?????????????????????????? | | % !*% # ########????????????????????????? | | = ! % [= #????# ? ????????????????????? | | % [ %*% [= % ##???# ?? #??????????????? | | = == % [ ==!# #???# ##?????????????? | | !%*% * [[ %[% ###### """"""" ;#?????????????? | | %%== [ [ %%% + """"""" #??????????????? | | %=!%=[ = [ =[% # """"""" #??????????????? | | !%% = ! ===% + #??????????????? | | ]=%%= %=/ = # % #??????????????? | | !! %==!! # == #??????????????? | | = = % !%%%[!=;; = #??????????????? | | ]% %% = %=%!===;# #??????????????? | | % != [ = %!%*==!]/;; @ % #??????????????? | | [[%/ % % !!= =!!;; K #??????????????? | | [%%=]%= ![!!%!;;;+;;;#######??????????????? | | %=% [! ! != ] ;## ####????????????????????? | | *%#! " % % !=]! "## #???????????????????????? | | #% # "%% +???????????????????????? | | #]%# ?# % ""/! "###???????????????????????? | | ?!# ##?# "% = ##?????????????????????????? | | ? ! ? %" #??????????????????????????? | | ?" ??### " #??????????????????????????? | | ?"T????# #??????????????????????????? | | ?##????####"##"###"#" #??????????????????????????? | | ????????? ??#### #??????????????????????????? | | ????????# ?????# #??????????????????????????? | | ????????#""" ?????# #?????????????+#???##??????? | | ?????????""" ??????# #????????????? #?? #??????? | | ??????????"" ??????# ########+##### #? ???????? | | ???????????"? ??????# # # =????????? | | ????????????????????# # # ?????????? | | ???????????????????## # " ??????????? | | ???????????????????#" " = = =%%#???????????? | | ???????????????#####""" != !%! #???????????? | | ???????????????# " ==!!*==! %#???????????? | | ???????????????# =% ! %! ! #???????????? | | ???????????????# " !%!" ""! # #???????????? | +----------------------------------------------------+ Best States ------------- Heat Dissipation 113 Energy Generation 65 Energy Capacity 700 Matter Stores 500 Matter Capacity 500 Sight Range 22 Robot Scan Range 18 Terrain Scan Density 10 Armor Coverage 1600 Resistance: KI 20 Resistance: TH 30 Resistance: EM 30 Core Shielding 20 Propulsion Shielding 33 Weapon Shielding 66 Weapon Cycling 20 Phase Shifting 5 Evasion (%) 55 Targeting Accuracy 16 Target Analysis 8 Core Analysis 8 Armor Integrity Analysis 40 Recoil Reduction 6 Offensive Hacking 48 Defensive Hacking 26 Trap Extractor Capacity 6 Item Schematics ----------------- Hcp. Storage Unit | -8/Materials | Scanalyzed Grenade Launcher | -8/Materials | Scanalyzed Assault Drone Bay | -4/Zhirov | Free Exp. Heat Sink | -4/Zhirov | Free Exp. Optical Array | -4/Zhirov | Free Imp. Arc Thrower | -4/Zhirov | Free Robot Schematics ------------------ None Fabricated ------------ Nothing Alien Tech Used ----------------- Integrated Reactor Transdimensional Reconstructor Achievements -------------- Giant Slayer Left-hand Path Challenges ------------ None Game ------ Seed FissionQuantumProtomatter Manual? 0 Play Time 05:34:14 Cumulative 670.2 hours Start 2022.05.11 @ 03:20:54 End 2022.05.12 @ 05:19:29 Sessions 5 Manual Loads 0 Difficulty Rogue Special Mode None Game No. 165 Rogue 133 Adventurer 31 Explorer 1 Win Type - Total 33 Types 25/0/4/4/0/0/0/0/0 Lore% 81 Gallery% 85 Achievement% 71 Wizard Run 0 Options --------- ASCII 0 Keyboard 0 Movement Arrows Keybinds 0 Fullscreen 1 Font 20/Terminus Map View 66x50 Tactical HUD 1 Map Filters NONE Filters NONE Steam 1 RUN: 939fb309-7a67-4d7b-b0b1-16a3658bff79